fUST/lending_fUST_20240227
["ID","MTS","AMOUNT","RATE_DAILY","PERIOD"]
[315280151,1708975840079,-1040.02,0.00019178,2]
[315280152,1708975840089,-500.0,0.00019178,2]
[315280153,1708975840100,-500.0,0.00019178,2]
[315280154,1708975840113,-840.97,0.00019178,2]
[315280155,1708975840123,-261.028789,0.00019178,2]
[315280156,1708975840133,-500.0,0.00019178,2]
[315280157,1708975840144,-1064.65,0.00019178,2]
[315280158,1708975840154,-566.39,0.00019178,2]
[315280160,1708975840164,-700.43,0.00019178,2]
[315280162,1708975840175,-565.59423463,0.00019178,2]
[315280164,1708975840186,-500.0,0.00019178,2]
[315280166,1708975840196,-209.13982258,0.00019178,2]
[315280168,1708975840206,-500.0,0.00019178,2]
[315280170,1708975840216,-736.08,0.00019178,2]
[315280172,1708975840227,-500.0,0.00019178,2]
[315280174,1708975840237,-500.0,0.00019178,2]
[315280176,1708975840246,-166.010736,0.00019178,2]
[315280178,1708975840256,-165.850123,0.00019178,2]
[315280180,1708975840265,-165.944358,0.00019178,2]
[315280182,1708975840277,-166.666666,0.00019178,2]
[315280184,1708975840287,-386.3684105,0.00019341,2]
[315280186,1708975840297,-428.76125456,0.00019352,2]
[315280188,1708975840308,-153.0,0.0001937,2]
[315280190,1708975840318,-500.0,0.00019451,2]
[315280192,1708975840328,-500.0,0.00019451,2]
[315280194,1708975840338,-500.0,0.00019451,2]
[315280196,1708975840348,-500.0,0.00019452,2]
[315280198,1708975840363,-500.0,0.00019452,2]
[315280200,1708975840373,-449.10144349,0.00019452,2]
[315280202,1708975840382,-436.95590383,0.00019452,2]
[315280204,1708975840392,-500.0,0.00019452,2]
[315280206,1708975840402,-500.0,0.00019452,2]
[315280208,1708975840413,-695.29,0.00019452,2]
[315280210,1708975840423,-500.0,0.00019452,2]
[315280212,1708975840433,-590.47,0.00019452,2]
[315280214,1708975840444,-500.0,0.00019452,2]
[315280216,1708975840454,-545.98,0.00019452,2]
[315280218,1708975840464,-500.0,0.00019452,2]
[315280220,1708975840474,-500.0,0.00019452,2]
[315280221,1708975840483,-307.43320476,0.00019452,2]
[315280223,1708975840493,-500.0,0.00019452,2]
[315280225,1708975840502,-500.0,0.00019452,2]
[315280227,1708975840512,-500.0,0.00019452,2]
[315280229,1708975840521,-500.0,0.00019452,2]
[315280232,1708975840531,-503.32932476,0.00019452,2]
[315280233,1708975840540,-500.0,0.00019452,2]
[315280235,1708975840550,-1739.59,0.00019452,2]
[315280237,1708975840559,-515.69,0.00019452,2]
[315280239,1708975840568,-500.0,0.00019452,2]
[315280242,1708975840582,-500.0,0.00019452,2]
[315280244,1708975840591,-552.51612196,0.00019452,2]
[315280245,1708975840600,-500.0,0.00019452,2]
[315280246,1708975840611,-500.0,0.00019452,2]
[315280247,1708975840620,-635.83996825,0.00019452,2]
[315280248,1708975840630,-500.0,0.00019452,2]
[315280249,1708975840639,-848.65,0.00019452,2]
[315280250,1708975840648,-1000.0,0.00019452,2]
[315280251,1708975840657,-500.0,0.00019452,2]
[315280252,1708975840666,-500.0,0.00019452,2]
[315280253,1708975840676,-500.0,0.00019452,2]
[315280255,1708975840685,-500.0,0.00019452,2]
[315280257,1708975840695,-253.01436056,0.00019452,2]
[315280259,1708975840704,-500.0,0.00019452,2]
[315280261,1708975840713,-932.88,0.00019452,2]
[315280263,1708975840722,-500.0,0.00019452,2]
[315280265,1708975840732,-500.0,0.00019452,2]
[315280267,1708975840741,-528.2173094,0.00019452,2]
[315280269,1708975840754,-500.0,0.00019452,2]
[315280271,1708975840762,-500.0,0.00019452,2]
[315280273,1708975840771,-500.0,0.00019452,2]
[315280275,1708975840781,-500.0,0.00019452,2]
[315280277,1708975840791,-500.0,0.00019452,2]
[315280279,1708975840801,-500.0,0.00019452,2]
[315280282,1708975840810,-4969.98,0.00019452,2]
[315280283,1708975840819,-500.0,0.00019452,2]
[315280286,1708975840828,-500.0,0.00019452,2]
[315280288,1708975840838,-5726.06,0.00019452,2]
[315280290,1708975840847,-500.0,0.00019452,2]
[315280291,1708975840858,-500.0,0.00019452,2]
[315280306,1708975840961,-500.0,0.00019452,2]
[315280308,1708975840971,-633.71,0.00019452,2]
[315280310,1708975840980,-411.91624469,0.00019452,2]
[315280312,1708975840989,-500.0,0.00019452,2]
[315280314,1708975840999,-500.0,0.00019452,2]
[315280316,1708975841008,-500.0,0.00019452,2]
[315280318,1708975841020,-1260.34,0.00019452,2]
[315280320,1708975841029,-500.0,0.00019452,2]
[315280322,1708975841038,-2035.13,0.00019452,2]
[315280324,1708975841047,-186.03022724,0.00019452,2]
[315280326,1708975841056,-284.91608667,0.00019452,2]
[315280328,1708975841067,-500.0,0.00019452,2]
[315280330,1708975841079,-604.40046169,0.00019452,2]
[315280332,1708975841088,-500.0,0.00019452,2]
[315280334,1708975841103,-500.0,0.00019452,2]
[315280336,1708975841114,-2584.76,0.00019452,2]
[315280338,1708975841123,-500.0,0.00019452,2]
[315280341,1708975841132,-500.0,0.00019452,2]
[315280343,1708975841142,-1514.46,0.00019452,2]
[315280345,1708975841151,-1231.68,0.00019452,2]
[315280346,1708975841161,-1519.51,0.00019452,2]
[315280349,1708975841170,-11291.86,0.00019452,2]
[315280350,1708975841179,-1775.87,0.00019452,2]
[315280352,1708975841188,-11546.08,0.00019452,2]
[315280355,1708975841198,-500.0,0.00019452,2]
[315280357,1708975841207,-747.87,0.00019452,2]
[315280359,1708975841217,-515.55018952,0.00019452,2]
[315280361,1708975841226,-500.0,0.00019452,2]
[315280363,1708975841235,-500.0,0.00019452,2]
[315280365,1708975841245,-500.0,0.00019452,2]
[315280367,1708975841256,-500.0,0.00019452,2]
[315280369,1708975841265,-607.73433503,0.00019452,2]
[315280371,1708975841275,-1212.5,0.00019452,2]
[315280373,1708975841283,-1040.02,0.00019452,2]
[315280375,1708975841293,-500.0,0.00019452,2]
[315280377,1708975841302,-500.0,0.00019452,2]
[315280379,1708975841311,-840.97,0.00019452,2]
[315280381,1708975841320,-500.0,0.00019452,2]
[315280382,1708975841329,-1064.65,0.00019452,2]
[315280385,1708975841339,-566.39,0.00019452,2]
[315280387,1708975841348,-700.43,0.00019452,2]
[315280388,1708975841360,-500.0,0.00019452,2]
[315280391,1708975841370,-500.0,0.00019452,2]
[315280393,1708975841380,-736.08,0.00019452,2]
[315280395,1708975841389,-501.25023183,0.00019452,2]
[315280397,1708975841399,-166.666666,0.00019627,2]
[315280398,1708975841408,-1519.07055314,0.00019725,2]
[315280400,1708975841418,-243.58118859,0.00019725,2]
[315280402,1708975841427,-399.333294,0.00019725,2]
[315280404,1708975841436,-500.0,0.00019726,2]
[315280406,1708975841446,-500.0,0.00019726,2]
[315280408,1708975841455,-500.0,0.00019726,2]
[315280410,1708975841465,-695.29,0.00019726,2]
[315280412,1708975841476,-590.47,0.00019726,2]
[315280414,1708975841486,-500.0,0.00019726,2]
[315280416,1708975841495,-545.98,0.00019726,2]
[315280418,1708975841505,-500.0,0.00019726,2]
[315280421,1708975841516,-500.0,0.00019726,2]
[315280423,1708975841526,-1739.59,0.00019726,2]
[315280425,1708975841535,-515.69,0.00019726,2]
[315280427,1708975841545,-500.0,0.00019726,2]
[315280429,1708975841555,-168.20415055,0.00019726,2]
[315280431,1708975841564,-500.0,0.00019726,2]
[315280433,1708975841574,-848.65,0.00019726,2]
[315280435,1708975841584,-559.01,0.00019726,2]
[315280436,1708975841593,-500.0,0.00019726,2]
[315280438,1708975841604,-500.0,0.00019726,2]
[315280440,1708975841614,-500.0,0.00019726,2]
[315280442,1708975841624,-500.0,0.00019726,2]
[315280444,1708975841634,-932.88,0.00019726,2]
[315280446,1708975841645,-500.0,0.00019726,2]
[315280448,1708975841655,-500.0,0.00019726,2]
[315280450,1708975841664,-500.0,0.00019726,2]
[315280452,1708975841673,-500.0,0.00019726,2]
[315280454,1708975841682,-500.0,0.00019726,2]
[315280456,1708975841692,-500.0,0.00019726,2]
[315280459,1708975841701,-536.17501023,0.00019726,2]
[315280461,1708975841710,-500.0,0.00019726,2]
[315280463,1708975841719,-4969.98,0.00019726,2]
[315280465,1708975841728,-593.05407186,0.00019726,2]
[315280467,1708975841737,-500.0,0.00019726,2]
[315280469,1708975841746,-5726.06,0.00019726,2]
[315280471,1708975841756,-501.64126338,0.00019726,2]
[315280473,1708975841765,-510.36105547,0.00019726,2]
[315280475,1708975841775,-500.0,0.00019726,2]
[315280477,1708975841784,-633.71,0.00019726,2]
[315280479,1708975841793,-500.0,0.00019726,2]
[315280481,1708975841802,-500.0,0.00019726,2]
[315280483,1708975841811,-500.0,0.00019726,2]
[315280485,1708975841820,-1260.34,0.00019726,2]
[315280487,1708975841829,-500.0,0.00019726,2]
[315280489,1708975841838,-2035.13,0.00019726,2]
[315280491,1708975841846,-500.0,0.00019726,2]
[315280493,1708975841857,-500.0,0.00019726,2]
[315280495,1708975841867,-2584.76,0.00019726,2]
[315280497,1708975841876,-156.21266389,0.00019726,2]
[315280499,1708975841885,-1514.46,0.00019726,2]
[315280501,1708975841894,-1231.68,0.00019726,2]
[315280503,1708975841903,-1519.51,0.00019726,2]
[315280505,1708975841912,-11291.86,0.00019726,2]
[315280507,1708975841921,-1775.87,0.00019726,2]
[315280509,1708975841930,-11546.08,0.00019726,2]
[315280511,1708975841939,-747.87,0.00019726,2]
[315280513,1708975841948,-500.0,0.00019726,2]
[315280515,1708975841958,-479.17651164,0.00019726,2]
[315280517,1708975841967,-1212.5,0.00019726,2]
[315280519,1708975841976,-1040.02,0.00019726,2]
[315280521,1708975841985,-500.0,0.00019726,2]
[315280523,1708975841994,-840.97,0.00019726,2]
[315280525,1708975842005,-500.0,0.00019726,2]
[315280527,1708975842015,-1064.65,0.00019726,2]
[315280529,1708975842026,-566.39,0.00019726,2]
[315280531,1708975842035,-700.43,0.00019726,2]
[315280533,1708975842044,-500.0,0.00019726,2]
[315280535,1708975842054,-736.08,0.00019726,2]
[315280537,1708975842065,-428.76125455,0.00019732,2]
[315280539,1708975842075,-8230.24916882,0.0001989,2]
[315280541,1708975842084,-243.58118859,0.00019999,2]
[315280543,1708975842094,-399.333294,0.00019999,2]
[315280545,1708975842103,-500.0,0.0002,2]
[315280547,1708975842113,-739.843,0.0002,2]
[315280549,1708975842122,-253.68558529,0.0002,2]
[315280551,1708975842131,-500.0,0.0002,2]
[315280553,1708975842141,-248.23,0.0002,7]
[315280555,1708975842150,-695.29,0.0002,2]
[315280557,1708975842161,-590.47,0.0002,2]
[315280559,1708975842170,-500.0,0.0002,2]
[315280561,1708975842179,-545.98,0.0002,2]
[315280563,1708975842188,-500.0,0.0002,2]
[315280565,1708975842198,-500.0,0.0002,2]
[315280567,1708975842207,-1739.59,0.0002,2]
[315280569,1708975842216,-515.69,0.0002,2]
[315280571,1708975842227,-500.0,0.0002,2]
[315280573,1708975842235,-500.0,0.0002,2]
[315280575,1708975842245,-848.65,0.0002,2]
[315280577,1708975842254,-609.4828341,0.0002,2]
[315280579,1708975842263,-500.0,0.0002,2]
[315280581,1708975842273,-195.0089163,0.0002,2]
[315280583,1708975842282,-311.85052786,0.0002,2]
[315280585,1708975842291,-932.88,0.0002,2]
[315280587,1708975842301,-500.0,0.0002,2]
[315280589,1708975842310,-500.0,0.0002,2]
[315280591,1708975842320,-501.88019527,0.0002,2]
[315280593,1708975842329,-4969.98,0.0002,2]
[315280595,1708975842338,-500.0,0.0002,2]
[315280597,1708975842347,-5726.06,0.0002,2]
[315280599,1708975842359,-633.71,0.0002,2]
[315280601,1708975842368,-500.0,0.0002,2]
[315280603,1708975842377,-500.0,0.0002,2]
[315280605,1708975842386,-1260.34,0.0002,2]
[315280607,1708975842395,-500.0,0.0002,2]
[315280609,1708975842404,-2035.13,0.0002,2]
[315280611,1708975842413,-500.0,0.0002,2]
[315280613,1708975842422,-500.0,0.0002,2]
[315280615,1708975842431,-2584.76,0.0002,2]
[315280617,1708975842440,-1514.46,0.0002,2]
[315280619,1708975842449,-1231.68,0.0002,2]
[315280621,1708975842458,-1519.51,0.0002,2]
[315280623,1708975842467,-11291.86,0.0002,2]
[315280625,1708975842477,-1775.87,0.0002,2]
[315280627,1708975842486,-11546.08,0.0002,2]
[315280628,1708975842495,-747.87,0.0002,2]
[315280630,1708975842504,-500.0,0.0002,2]
[315280632,1708975842513,-1212.5,0.0002,2]
[315280634,1708975842523,-1040.02,0.0002,2]
[315280636,1708975842533,-500.0,0.0002,2]
[315280638,1708975842543,-840.97,0.0002,2]
[315280641,1708975842553,-1064.65,0.0002,2]
[315280644,1708975842562,-566.39,0.0002,2]
[315280648,1708975842573,-700.43,0.0002,2]
[315280652,1708975842583,-500.0,0.0002,2]
[315280657,1708975842592,-736.08,0.0002,2]
[315280662,1708975842601,-166.666666,0.00020076,2]
[315280666,1708975842611,-428.76125455,0.00020113,2]
[315280668,1708975842621,-399.333294,0.00020272,2]
[315280671,1708975842632,-500.0,0.00020273,2]
[315280674,1708975842641,-500.0,0.00020273,2]
[315280677,1708975842650,-695.29,0.00020273,2]
[315280680,1708975842659,-590.47,0.00020273,2]
[315280683,1708975842668,-552.22584778,0.00020273,2]
[315280686,1708975842677,-545.98,0.00020273,2]
[315280689,1708975842687,-500.0,0.00020273,2]
[315280693,1708975842696,-500.0,0.00020273,2]
[315280697,1708975842705,-1739.59,0.00020273,2]
[315280699,1708975842716,-515.69,0.00020273,2]
[315280702,1708975842726,-500.0,0.00020273,2]
[315280707,1708975842735,-500.0,0.00020273,2]
[315280712,1708975842744,-848.65,0.00020273,2]
[315280718,1708975842754,-350.16228113,0.00020273,2]
[315280724,1708975842764,-932.88,0.00020273,2]
[315280731,1708975842774,-4969.98,0.00020273,2]
[315280737,1708975842783,-5726.06,0.00020273,2]
[315280742,1708975842792,-633.71,0.00020273,2]
[315280747,1708975842801,-500.0,0.00020273,2]
[315280751,1708975842810,-500.0,0.00020273,2]
[315280756,1708975842820,-1260.34,0.00020273,2]
[315280760,1708975842830,-500.0,0.00020273,2]
[315280765,1708975842839,-2035.13,0.00020273,2]
[315280769,1708975842847,-500.0,0.00020273,2]
[315280774,1708975842858,-500.0,0.00020273,2]
[315280779,1708975842868,-2584.76,0.00020273,2]
[315280783,1708975842877,-1514.46,0.00020273,2]
[315280789,1708975842886,-1231.68,0.00020273,2]
[315280793,1708975842895,-1519.51,0.00020273,2]
[315280798,1708975842905,-11291.86,0.00020273,2]
[315280803,1708975842915,-1775.87,0.00020273,2]
[315280808,1708975842925,-11546.08,0.00020273,2]
[315280813,1708975842934,-747.87,0.00020273,2]
[315280817,1708975842943,-1212.5,0.00020273,2]
[315280822,1708975842952,-1040.02,0.00020273,2]
[315280827,1708975842962,-500.0,0.00020273,2]
[315280829,1708975842971,-840.97,0.00020273,2]
[315280832,1708975842980,-1064.65,0.00020273,2]
[315280836,1708975842990,-566.39,0.00020273,2]
[315280839,1708975842998,-700.43,0.00020273,2]
[315280842,1708975843008,-500.0,0.00020273,2]
[315280846,1708975843021,-736.08,0.00020273,2]
[315280850,1708975843030,-628.79201468,0.00020283,2]
[315280854,1708975843039,-4194.40122071,0.00020284,2]
[315280859,1708975843048,-5000.0,0.00020284,2]
[315280863,1708975843058,-2580.92250231,0.00020285,2]
[315280866,1708975843068,-36867.46282834,0.00020285,2]
[315280869,1708975843078,-50000.0,0.00020285,2]
[315280873,1708975843087,-58762.26470556,0.00020285,2]
[315280877,1708975843096,-9051.46563137,0.00020285,2]
[315280881,1708975843106,-33042.89625003,0.00020285,2]
[315280884,1708975843116,-1000.0,0.00020287,2]
[315280889,1708975843126,-175.0,0.00020291,2]
[315280892,1708975843135,-2189.82619244,0.00020293,2]
[315280895,1708975843144,-1433.00078072,0.00020294,2]
[315280899,1708975843156,-883.5845707,0.00020294,2]
[315280904,1708975843166,-349.73263802,0.00020294,2]
[315280908,1708975843175,-491.50470323,0.00020294,2]
[315280911,1708975843184,-185.70339636,0.00020294,2]
[315280915,1708975843194,-1213.2616781,0.00020328,2]
[315280919,1708975843203,-300.0,0.00020373,2]
[315280924,1708975843213,-153.65780855,0.0002047,2]
[315280928,1708975843222,-428.76125455,0.00020493,2]
[315280931,1708975843232,-166.666666,0.00020524,2]
[315280934,1708975843243,-629.68,0.00020538,3]
[315280937,1708975843252,-524.74,0.00020538,3]
[315280940,1708975843261,-243.58118859,0.00020546,2]
[315280942,1708975843270,-500.0,0.00020546,2]
[315280946,1708975843280,-500.0,0.00020546,2]
[315280948,1708975843289,-500.0,0.00020546,2]
[315280952,1708975843299,-500.0,0.00020546,2]
[315280954,1708975843309,-500.0,0.00020546,2]
[315280956,1708975843318,-500.0,0.00020546,2]
[315280958,1708975843327,-500.0,0.00020546,2]
[315280960,1708975843336,-500.0,0.00020546,2]
[315280963,1708975843345,-500.0,0.00020546,2]
[315280965,1708975843356,-256.44210122,0.00020546,2]
[315280968,1708975843365,-500.0,0.00020547,2]
[315280971,1708975843374,-500.0,0.00020547,2]
[315280973,1708975843383,-695.29,0.00020547,2]
[315280977,1708975843394,-590.47,0.00020547,2]
[315280980,1708975843405,-545.98,0.00020547,2]
[315280983,1708975843414,-500.0,0.00020547,2]
[315280985,1708975843424,-500.0,0.00020547,2]
[315280988,1708975843434,-1739.59,0.00020547,2]
[315281008,1708975843443,-515.69,0.00020547,2]
[315281011,1708975843542,-500.0,0.00020547,2]
[315281014,1708975843552,-848.65,0.00020547,2]
[315281017,1708975843561,-932.88,0.00020547,2]
[315281020,1708975843571,-4969.98,0.00020547,2]
[315281023,1708975843581,-5726.06,0.00020547,2]
[315281026,1708975843590,-633.71,0.00020547,2]
[315281029,1708975843598,-500.0,0.00020547,2]
[315281032,1708975843608,-500.0,0.00020547,2]
[315281035,1708975843618,-1260.34,0.00020547,2]
[315281038,1708975843628,-500.0,0.00020547,2]
[315281040,1708975843638,-2035.13,0.00020547,2]
[315281043,1708975843647,-500.0,0.00020547,2]
[315281047,1708975843657,-500.0,0.00020547,2]
[315281050,1708975843667,-2584.76,0.00020547,2]
[315281053,1708975843677,-1514.46,0.00020547,2]
[315281055,1708975843686,-1231.68,0.00020547,2]
[315281057,1708975843696,-1519.51,0.00020547,2]
[315281058,1708975843705,-11291.86,0.00020547,2]
[315281060,1708975843715,-1775.87,0.00020547,2]
[315281062,1708975843724,-11546.08,0.00020547,2]
[315281064,1708975843735,-747.87,0.00020547,2]
[315281066,1708975843745,-1212.5,0.00020547,2]
[315281068,1708975843754,-1040.02,0.00020547,2]
[315281070,1708975843763,-644.04663569,0.00020547,2]
[315281072,1708975843772,-840.97,0.00020547,2]
[315281074,1708975843782,-1064.65,0.00020547,2]
[315281076,1708975843791,-566.39,0.00020547,2]
[315281078,1708975843801,-700.43,0.00020547,2]
[315281080,1708975843810,-500.0,0.00020547,2]
[315281082,1708975843820,-736.08,0.00020547,2]
[315281084,1708975843829,-200.5826354,0.00020548,2]
[315281086,1708975843838,-1000.0,0.00020578,2]
[315281087,1708975843847,-1000.0,0.00020612,2]
[315281089,1708975843858,-221.04141408,0.00020627,2]
[315281091,1708975843867,-1000.0,0.00020631,2]
[315281093,1708975843877,-1000.0,0.00020647,2]
[315281095,1708975843886,-159.08331107,0.00020685,2]
[315281097,1708975843895,-1000.0,0.00020744,2]
[315281099,1708975843904,-1000.0,0.0002076,2]
[315281101,1708975843914,-153.0,0.00020767,2]
[315281103,1708975843923,-153.0,0.00020767,2]
[315281105,1708975843932,-153.0,0.00020767,2]
[315281107,1708975843941,-153.0,0.00020767,2]
[315281109,1708975843950,-5000.0,0.00020813,2]
[315281111,1708975843960,-1000.0,0.00020817,2]
[315281113,1708975843969,-252.83319007,0.00020821,2]
[315281115,1708975843978,-500.0,0.00020821,2]
[315281117,1708975843987,-695.29,0.00020821,2]
[315281119,1708975843996,-590.47,0.00020821,2]
[315281121,1708975844005,-545.98,0.00020821,2]
[315281122,1708975844014,-500.0,0.00020821,2]
[315281124,1708975844025,-500.0,0.00020821,2]
[315281126,1708975844035,-1739.59,0.00020821,2]
[315281128,1708975844044,-515.69,0.00020821,2]
[315281130,1708975844053,-500.0,0.00020821,2]
[315281132,1708975844063,-848.65,0.00020821,2]
[315281134,1708975844074,-932.88,0.00020821,2]
[315281136,1708975844083,-4969.98,0.00020821,2]
[315281138,1708975844092,-5726.06,0.00020821,2]
[315281140,1708975844103,-633.71,0.00020821,2]
[315281142,1708975844113,-500.0,0.00020821,2]
[315281144,1708975844123,-500.0,0.00020821,2]
[315281146,1708975844132,-1260.34,0.00020821,2]
[315281147,1708975844141,-298.70806404,0.00020821,2]
[315281149,1708975844152,-2035.13,0.00020821,2]
[315281151,1708975844162,-500.0,0.00020821,2]
[315281153,1708975844171,-500.0,0.00020821,2]
[315281155,1708975844180,-2584.76,0.00020821,2]
[315281157,1708975844189,-1514.46,0.00020821,2]
[315281159,1708975844199,-1231.68,0.00020821,2]
[315281161,1708975844208,-1519.51,0.00020821,2]
[315281163,1708975844218,-11291.86,0.00020821,2]
[315281165,1708975844228,-1775.87,0.00020821,2]
[315281167,1708975844239,-11546.08,0.00020821,2]
[315281169,1708975844248,-747.87,0.00020821,2]
[315281171,1708975844258,-1212.5,0.00020821,2]
[315281173,1708975844267,-1040.02,0.00020821,2]
[315281174,1708975844276,-840.97,0.00020821,2]
[315281176,1708975844286,-1064.65,0.00020821,2]
[315281178,1708975844295,-566.39,0.00020821,2]
[315281180,1708975844304,-700.43,0.00020821,2]
[315281182,1708975844313,-500.0,0.00020821,2]
[315281184,1708975844323,-736.08,0.00020821,2]
[315281186,1708975844332,-1000.0,0.00020827,2]
[315281188,1708975844341,-428.76125455,0.00020873,2]
[315281190,1708975844350,-276000.0,0.000209,2]
[315281192,1708975844361,-6207.39252176,0.00020901,2]
[315281194,1708975844371,-166.666666,0.00020973,2]
[315281196,1708975844380,-179.43256387,0.00020998,2]
[315281198,1708975844391,-281.04469292,0.00020998,2]
[315281200,1708975844401,-237.99635956,0.00020999,2]
[315281202,1708975844410,-160.0,0.00020999,2]
[315281204,1708975844420,-160.0,0.00020999,2]
[315281206,1708975844429,-160.0,0.00020999,2]
[315281208,1708975844438,-399.333294,0.00020999,2]
[315281209,1708975844448,-643.59909627,0.00020999,2]
[315281211,1708975844458,-500.0,0.00020999,2]
[315281213,1708975844467,-500.0,0.00020999,2]
[315281215,1708975844476,-500.0,0.00020999,2]
[315281217,1708975844486,-500.0,0.00020999,2]
[315281219,1708975844496,-500.0,0.00020999,2]
[315281221,1708975844505,-500.0,0.00020999,2]
[315281223,1708975844515,-500.0,0.00020999,2]
[315281225,1708975844524,-500.0,0.00020999,2]
[315281227,1708975844533,-500.0,0.00020999,2]
[315281229,1708975844545,-500.0,0.00020999,2]
[315281231,1708975844554,-500.0,0.00020999,2]
[315281232,1708975844564,-500.0,0.00020999,2]
[315281234,1708975844574,-500.0,0.00020999,2]
[315281236,1708975844583,-500.0,0.00020999,2]
[315281238,1708975844593,-500.0,0.00020999,2]
[315281240,1708975844604,-500.0,0.00020999,2]
[315281242,1708975844614,-500.0,0.00020999,2]
[315281244,1708975844623,-500.0,0.00020999,2]
[315281246,1708975844633,-500.0,0.00020999,2]
[315281248,1708975844643,-500.0,0.00020999,2]
[315281250,1708975844652,-500.0,0.00020999,2]
[315281252,1708975844663,-500.0,0.00020999,2]
[315281254,1708975844672,-500.0,0.00020999,2]
[315281256,1708975844685,-500.0,0.00020999,2]
[315281258,1708975844698,-500.0,0.00020999,2]
[315281260,1708975844711,-1011.0,0.00021,2]
[315281262,1708975844724,-234.26808485,0.00021,2]
[315281264,1708975844738,-31119.135162,0.00021,2]
[315281266,1708975844749,-174127.58187944,0.00021,2]
[315281268,1708975844760,-9912.53604233,0.00021,2]
[315281271,1708975844771,-3382.35757216,0.00021,2]
[315281273,1708975844783,-195.34948283,0.00021,2]
[315281275,1708975844795,-3092.35485808,0.00021,2]
[315281277,1708975844807,-300.0,0.00021,9]
[315281279,1708975844820,-175.0,0.00021,2]
[315281281,1708975844833,-175.5,0.00021,2]
[315281283,1708975844844,-956.542313,0.00021,2]
[315281286,1708975844859,-956.542313,0.00021,2]
[315281288,1708975844871,-151.151993,0.00021,2]
[315281290,1708975844883,-580.0,0.00021,2]
[315281292,1708975844894,-872.0643,0.00021,2]
[315281294,1708975844906,-5000.0,0.00021037,2]
[315281296,1708975844919,-5000.0,0.00021038,2]
[315281298,1708975844931,-5000.0,0.00021041,2]
[315281300,1708975844943,-5000.0,0.00021041,2]
[315281302,1708975844956,-151.0,0.00021041,2]
[315281304,1708975844967,-233.815164,0.00021041,2]
[315281307,1708975844980,-1000.0,0.00021043,2]
[315281309,1708975844993,-1000.0,0.00021043,2]
[315281311,1708975845005,-5000.0,0.00021043,2]
[315281313,1708975845015,-1000.0,0.00021045,2]
[315281315,1708975845027,-1000.0,0.00021045,2]
[315281317,1708975845040,-170.534859,0.00021045,2]
[315281319,1708975845055,-170.534859,0.00021045,2]
[315281321,1708975845070,-956.542313,0.00021045,2]
[315281324,1708975845086,-956.542313,0.00021045,2]
[315281326,1708975845098,-151.0,0.00021059,2]
[315281328,1708975845114,-5000.0,0.00021083,2]
[315281330,1708975845129,-1000.0,0.00021088,2]
[315281333,1708975845143,-500.0,0.00021094,2]
[315281335,1708975845159,-500.0,0.00021094,2]
[315281337,1708975845171,-500.0,0.00021094,2]
[315281339,1708975845183,-500.0,0.00021094,2]
[315281341,1708975845196,-500.0,0.00021094,2]